{"text_format":"1","workbook":"xlsx","n_sheets":2,"sheets":["GRAFICO","BANCO DADOS"],"not_rendered":{"charts":1,"images":0,"macros":1,"external_links":0,"defined_names":2,"comments":0,"pivot_tables":0},"unopened":[],"bounds":{"document_bytes":16777216,"sheet_cells":100000,"rows_first":2000,"rows_last":500,"rows_between":2000,"halvings":0,"cell_chars":16384,"cell_head_chars":4096},"cells_cut":0,"cells_raw":0,"read":"whole","date_system":"1900"}

{"sheet":"GRAFICO","index":0,"n_rows":46,"n_cols":1,"rows_kept":46,"cut":false,"hidden":false,"merged":[]}
["Selecione o Piloto e clique sobre o gráfico."]
["Adriano Morato"]
["Alberto Branco"]
["Aldo Silvestre"]
["Alexandre Melillo"]
["Anderson Lopes"]
["Carlos Eduardo"]
["Carlos Filizolla"]
["Carlos Sampaio"]
["Cláudio Carvalho"]
["Cláudio Dumont"]
["Claudio Junqueira"]
["Marcelo Clemente"]
["Ederson Lopes"]
["Edson Ribeiro"]
["Emerson Lopes"]
["Enio Júnior"]
["Euclides Almeida"]
["Fernando Santos"]
["Gijo"]
["Guilherme Janot"]
["Gustavo Mourão"]
["Henrique Castilho"]
["Ivan Renault"]
["Jader Abreu"]
["Jarbas Reis"]
["Jorge Prado"]
["Léo Marx"]
["Leodegario Junior"]
["Marcelo Mizrahy"]
["Marcelo Pinheiro"]
["Marcelo Sant'anna"]
["Marcelo Santiago"]
["Marcelo Surerus"]
["Maurílio Carmo"]
["Michel Abouud"]
["Morvan"]
["Paulo Feitosa"]
["Rafael Cançado"]
["Reinaldo Paoli"]
["Roberto Veloso"]
["Rodrigo Mercadante"]
["Rodrigo Rotheia"]
["Ricardo Araújo"]
["Ricardo Vidigal"]
["Caetano"]

{"sheet":"BANCO DADOS","index":1,"n_rows":592,"n_cols":22,"rows_kept":592,"cut":false,"hidden":true,"merged":[]}
["ANO","ETAPA","PILOTOS","LARG","FINAL",null,null,null,null,null,null,null,null,"ANO","ETAPA","PILOTOS","LARG","FINAL",null,{"$f":"INT(SUBTOTAL(9,T2:T2601)/COUNT(9,Q2:Q2601))","v":6},{"$f":"CONCATENATE(P2,\" - \",)","v":"Alexandre Melillo - "},"Alexandre Melillo - "]
[21,1,"Cláudio Dumont",2,1,null,null,null,null,null,null,null,null,21,1,"Alexandre Melillo",12,12,null,{"$f":"Q2-R2","v":0}]
[21,1,"Rodrigo Rotheia",8,2,null,null,null,null,null,null,null,null,21,2,"Alexandre Melillo",22,5,null,{"$f":"Q3-R3","v":17}]
[21,1,"Marcelo Mizrahy",9,3,null,null,null,null,null,null,null,null,21,3,"Alexandre Melillo",29,9,null,20]
[21,1,"Claudio Junqueira",4,4,null,null,null,null,null,null,null,null,21,4,"Alexandre Melillo",28,10,null,18]
[21,1,"Rodrigo Mercadante",14,5,null,null,null,null,null,null,null,null,21,6,"Alexandre Melillo",21,2,null,19]
[21,1,"Guilherme Janot",3,6,null,null,null,null,null,null,null,null,21,7,"Alexandre Melillo",15,4,null,11]
[21,1,"Enio Júnior",18,7,null,null,null,null,null,null,null,null,21,8,"Alexandre Melillo",20,9,null,11]
[21,1,"Marcelo Clemente",6,8,null,null,null,null,null,null,null,null,21,9,"Alexandre Melillo",13,2,null,11]
[21,1,"Marcelo Sant'anna",5,9,null,null,null,null,null,null,null,null,21,10,"Alexandre Melillo",14,8,null,6]
[21,1,"Reinaldo Paoli",13,10,null,null,null,null,null,null,null,null,21,11,"Alexandre Melillo",12,6,null,6]
[21,1,"Maurílio Carmo",25,11,null,null,null,null,null,null,null,null,21,12,"Alexandre Melillo",11,2,null,9]
[21,1,"Alexandre Melillo",12,12,null,null,null,null,null,null,null,null,22,1,"Alexandre Melillo",2,19,null,-17]
[21,1,"Carlos Eduardo",10,13,null,null,null,null,null,null,null,null,22,3,"Alexandre Melillo",21,1,null,20]
[21,1,"Anderson Lopes",29,14,null,null,null,null,null,null,null,null,22,4,"Alexandre Melillo",2,13,null,-11]
[21,1,"Gustavo Mourão",33,15,null,null,null,null,null,null,null,null,22,5,"Alexandre Melillo",2,1,null,1]
[21,1,"Marcelo Santiago",26,16,null,null,null,null,null,null,null,null,22,6,"Alexandre Melillo",5,5,null,0]
[21,1,"Michel Abouud",20,17,null,null,null,null,null,null,null,null,22,7,"Alexandre Melillo",8,4,null,4]
[21,1,"Morvan",23,18,null,null,null,null,null,null,null,null,22,8,"Alexandre Melillo",7,4,null,3]
[21,1,"Cláudio Carvalho",15,19,null,null,null,null,null,null,null,null,22,9,"Alexandre Melillo",8,1,null,7]
[21,1,"Fernando Santos",30,20,null,null,null,null,null,null,null,null,22,10,"Alexandre Melillo",9,3,null,6]
[21,1,"Jarbas Reis",11,21,null,null,null,null,null,null,null,null,22,11,"Alexandre Melillo",7,3,null,4]
[21,1,"WAGNER MIRANDA",32,22,null,null,null,null,null,null,null,null,22,12,"Alexandre Melillo",9,1,null,8]
[21,1,"Léo Marx",7,23,null,null,null,null,null,null,null,null,null,null,null,null,null,null,0]
[21,1,"Marcelo Surerus",17,24,null,null,null,null,null,null,null,null,null,null,null,null,null,null,0]
[21,1,"Carlos Sampaio",31,25,null,null,null,null,null,null,null,null,null,null,null,null,null,null,0]
[21,1,"Leodegario Junior",24,26,null,null,null,null,null,null,null,null,null,null,null,null,null,null,0]
[21,1,"Jorge Prado",28,27,null,null,null,null,null,null,null,null,null,null,null,null,null,null,0]
[21,1,"Alberto Branco",34,28,null,null,null,null,null,null,null,null,null,null,null,null,null,null,0]
[21,1,"Adriano Morato",22,29,null,null,null,null,null,null,null,null,null,null,null,null,null,null,0]
[21,1,"Carlos Filizolla",19,30,null,null,null,null,null,null,null,null,null,null,null,null,null,null,0]
[21,1,"Euclides Almeida",21,31,null,null,null,null,null,null,null,null,null,null,null,null,null,null,0]
[21,1,"Marcelo Pinheiro",35,32,null,null,null,null,null,null,null,null,null,null,null,null,null,null,0]
[21,1,"Ederson Lopes",27,33,null,null,null,null,null,null,null,null,null,null,null,null,null,null,0]
[21,1,"Roberto Veloso",16,34,null,null,null,null,null,null,null,null,null,null,null,null,null,null,0]
[21,1,"Ivan Renault",1,35,null,null,null,null,null,null,null,null,null,null,null,null,null,null,0]
[21,1,"Henrique Castilho",36,36,null,null,null,null,null,null,null,null,null,null,null,null,null,null,0]
[21,2,"Ivan Renault",2,1,null,null,null,null,null,null,null,null,null,null,null,null,null,null,0]
[21,2,"Roberto Veloso",3,2,null,null,null,null,null,null,null,null,null,null,null,null,null,null,0]
[21,2,"Marcelo Surerus",11,3,null,null,null,null,null,null,null,null,null,null,null,null,null,null,0]
[21,2,"Jarbas Reis",14,4,null,null,null,null,null,null,null,null,null,null,null,null,null,null,0]
[21,2,"Alexandre Melillo",22,5,null,null,null,null,null,null,null,null,null,null,null,null,null,null,0]
[21,2,"Guilherme Janot",26,6,null,null,null,null,null,null,null,null,null,null,null,null,null,null,0]
[21,2,"Marcelo Mizrahy",29,7,null,null,null,null,null,null,null,null,null,null,null,null,null,null,0]
[21,2,"Euclides Almeida",6,8,null,null,null,null,null,null,null,null,null,null,null,null,null,null,0]
[21,2,"Carlos Sampaio",10,9,null,null,null,null,null,null,null,null,null,null,null,null,null,null,0]
[21,2,"Aldo Silvestre",31,10,null,null,null,null,null,null,null,null,null,null,null,null,null,null,0]
[21,2,"Claudio Junqueira",28,11,null,null,null,null,null,null,null,null,null,null,null,null,null,null,0]
[21,2,"Rodrigo Rotheia",30,12,null,null,null,null,null,null,null,null,null,null,null,null,null,null,0]
[21,2,"Léo Marx",12,13,null,null,null,null,null,null,null,null,null,null,null,null,null,null,0]
[21,2,"Caetano",35,14,null,null,null,null,null,null,null,null,null,null,null,null,null,null,0]
[21,2,"Jorge Prado",8,15,null,null,null,null,null,null,null,null,null,null,null,null,null,null,0]
[21,2,"Rodrigo Mercadante",27,16,null,null,null,null,null,null,null,null,null,null,null,null,null,null,0]
[21,2,"Carlos Eduardo",21,17,null,null,null,null,null,null,null,null,null,null,null,null,null,null,0]
[21,2,"Maurílio Carmo",23,18,null,null,null,null,null,null,null,null,null,null,null,null,null,null,0]
[21,2,"Marcelo Sant'anna",37,19,null,null,null,null,null,null,null,null,null,null,null,null,null,null,0]
[21,2,"Reinaldo Paoli",24,20,null,null,null,null,null,null,null,null,null,null,null,null,null,null,0]
[21,2,"Leodegario Junior",9,21,null,null,null,null,null,null,null,null,null,null,null,null,null,null,0]
[21,2,"Ricardo Vidigal",34,22,null,null,null,null,null,null,null,null,null,null,null,null,null,null,0]
[21,2,"Ricardo Araújo",33,23,null,null,null,null,null,null,null,null,null,null,null,null,null,null,0]
[21,2,"Edson Ribeiro",0,24,null,null,null,null,null,null,null,null,null,null,null,null,null,null,0]
[21,2,"Marcelo Santiago",18,25,null,null,null,null,null,null,null,null,null,null,null,null,null,null,0]
[21,2,"Enio Júnior",25,26,null,null,null,null,null,null,null,null,null,null,null,null,null,null,0]
[21,2,"Morvan",16,27,null,null,null,null,null,null,null,null,null,null,null,null,null,null,0]
[21,2,"Henrique Castilho",1,28,null,null,null,null,null,null,null,null,null,null,null,null,null,null,0]
[21,2,"Jader Abreu",32,29,null,null,null,null,null,null,null,null,null,null,null,null,null,null,0]
[21,2,"Carlos Filizolla",36,30,null,null,null,null,null,null,null,null,null,null,null,null,null,null,{"$f":"Q67-R67","v":0}]
[21,2,"Gijo",13,31,null,null,null,null,null,null,null,null,null,null,null,null,null,null,0]
[21,2,"Ederson Lopes",4,32,null,null,null,null,null,null,null,null,null,null,null,null,null,null,0]
[21,2,"Anderson Lopes",20,33,null,null,null,null,null,null,null,null,null,null,null,null,null,null,0]
[21,2,"Gustavo Mourão",19,34,null,null,null,null,null,null,null,null,null,null,null,null,null,null,0]
[21,2,"Michel Abouud",17,35,null,null,null,null,null,null,null,null,null,null,null,null,null,null,0]
[21,2,"Marcelo Pinheiro",5,36,null,null,null,null,null,null,null,null,null,null,null,null,null,null,0]
[21,2,"Alberto Branco",7,37,null,null,null,null,null,null,null,null,null,null,null,null,null,null,0]
[21,2,"Cláudio Carvalho",15,0,null,null,null,null,null,null,null,null,null,null,null,null,null,null,0]
[21,3,"Ivan Renault",25,1,null,null,null,null,null,null,null,null,null,null,null,null,null,null,0]
[21,3,"Cláudio Dumont",22,2,null,null,null,null,null,null,null,null,null,null,null,null,null,null,0]
[21,3,"Caetano",12,3,null,null,null,null,null,null,null,null,null,null,null,null,null,null,0]
[21,3,"Euclides Almeida",18,4,null,null,null,null,null,null,null,null,null,null,null,null,null,null,0]
[21,3,"Rodrigo Rotheia",30,5,null,null,null,null,null,null,null,null,null,null,null,null,null,null,0]
[21,3,"Claudio Junqueira",36,6,null,null,null,null,null,null,null,null,null,null,null,null,null,null,0]
[21,3,"Roberto Veloso",19,7,null,null,null,null,null,null,null,null,null,null,null,null,null,null,0]
[21,3,"Marcelo Surerus",26,8,null,null,null,null,null,null,null,null,null,null,null,null,null,null,0]
[21,3,"Alexandre Melillo",29,9,null,null,null,null,null,null,null,null,null,null,null,null,null,null,0]
[21,3,"Carlos Eduardo",21,10,null,null,null,null,null,null,null,null,null,null,null,null,null,null,0]
[21,3,"Morvan",13,11,null,null,null,null,null,null,null,null,null,null,null,null,null,null,0]
[21,3,"Marcelo Sant'anna",16,12,null,null,null,null,null,null,null,null,null,null,null,null,null,null,0]
[21,3,"Ricardo Vidigal",37,13,null,null,null,null,null,null,null,null,null,null,null,null,null,null,0]
[21,3,"Marcelo Clemente",33,14,null,null,null,null,null,null,null,null,null,null,null,null,null,null,0]
[21,3,"Gijo",10,15,null,null,null,null,null,null,null,null,null,null,null,null,null,null,0]
[21,3,"Jorge Prado",15,16,null,null,null,null,null,null,null,null,null,null,null,null,null,null,0]
[21,3,"Reinaldo Paoli",24,17,null,null,null,null,null,null,null,null,null,null,null,null,null,null,0]
[21,3,"Guilherme Janot",31,18,null,null,null,null,null,null,null,null,null,null,null,null,null,null,0]
[21,3,"Rodrigo Mercadante",28,19,null,null,null,null,null,null,null,null,null,null,null,null,null,null,0]
[21,3,"Edson Ribeiro",1,20,null,null,null,null,null,null,null,null,null,null,null,null,null,null,0]
[21,3,"Jader Abreu",3,21,null,null,null,null,null,null,null,null,null,null,null,null,null,null,0]
[21,3,"Jarbas Reis",27,22,null,null,null,null,null,null,null,null,null,null,null,null,null,null,0]
[21,3,"Enio Júnior",23,23,null,null,null,null,null,null,null,null,null,null,null,null,null,null,0]
[21,3,"Marcelo Mizrahy",32,24,null,null,null,null,null,null,null,null,null,null,null,null,null,null,0]
[21,3,"Carlos Sampaio",20,25,null,null,null,null,null,null,null,null,null,null,null,null,null,null,0]
[21,3,"Carlos Filizolla",2,26,null,null,null,null,null,null,null,null,null,null,null,null,null,null,0]
[21,3,"Maurílio Carmo",35,27,null,null,null,null,null,null,null,null,null,null,null,null,null,null,0]
[21,3,"Ricardo Araújo",8,28,null,null,null,null,null,null,null,null,null,null,null,null,null,null,0]
[21,3,"Michel Abouud",11,29,null,null,null,null,null,null,null,null,null,null,null,null,null,null,0]
[21,3,"Marcelo Santiago",17,30,null,null,null,null,null,null,null,null,null,null,null,null,null,null,0]
[21,3,"Henrique Castilho",7,31,null,null,null,null,null,null,null,null,null,null,null,null,null,null,0]
[21,3,"Anderson Lopes",14,32]
[21,3,"Alberto Branco",5,33]
[21,3,"Ederson Lopes",6,34]
[21,3,"Marcelo Pinheiro",4,35]
[21,3,"Leodegario Junior",34,36]
[21,3,"Cláudio Carvalho",9,37]
[21,4,"Leodegario Junior",4,1]
[21,4,"Carlos Sampaio",13,2]
[21,4,"Marcelo Sant'anna",17,3]
[21,4,"Guilherme Janot",27,4]
[21,4,"Ivan Renault",29,5]
[21,4,"Caetano",18,6]
[21,4,"Cláudio Dumont",26,7]
[21,4,"Marcelo Mizrahy",25,8]
[21,4,"Carlos Eduardo",23,9]
[21,4,"Alexandre Melillo",28,10]
[21,4,"Enio Júnior",16,11]
[21,4,"Roberto Veloso",22,12]
[21,4,"Jarbas Reis",20,13]
[21,4,"Marcelo Surerus",24,14]
[21,4,"Carlos Filizolla",3,15]
[21,4,"Rodrigo Mercadante",21,16]
[21,4,"Ricardo Vidigal",9,17]
[21,4,"Ricardo Araújo",6,18]
[21,4,"Michel Abouud",8,19]
[21,4,"Marcelo Santiago",10,20]
[21,4,"Gijo",11,21]
[21,4,"Jader Abreu",7,22]
[21,4,"Marcelo Clemente",14,23]
[21,4,"Edson Ribeiro",5,24]
[21,4,"Morvan",15,25]
[21,4,"Marcelo Pinheiro",31,26]
[21,4,"Maurílio Carmo",12,27]
[21,4,"Ederson Lopes",1,28]
[21,4,"Reinaldo Paoli",19,29]
[21,4,"Alberto Branco",2,30]
[21,4,"Rodrigo Rotheia",30,31]
[21,5,"Marcelo Clemente",12,1]
[21,5,"Marcelo Surerus",19,2]
[21,5,"Marcelo Mizrahy",20,3]
[21,5,"Marcelo Sant'anna",17,4]
[21,5,"Edson Ribeiro",4,5]
[21,5,"Ricardo Araújo",5,6]
[21,5,"Jarbas Reis",14,7]
[21,5,"Ricardo Vidigal",10,8]
[21,5,"Rodrigo Mercadante",15,9]
[21,5,"Gijo",9,10]
[21,5,"Michel Abouud",6,11]
[21,5,"Caetano",24,12]
[21,5,"Maurílio Carmo",8,13]
[21,5,"Carlos Eduardo",18,14]
[21,5,"Henrique Castilho",23,15]
[21,5,"Carlos Sampaio",16,16]
[21,5,"Leodegario Junior",11,17]
[21,5,"Morvan",13,18]
[21,5,"Marcelo Santiago",7,19]
[21,5,"Guilherme Janot",22,20]
[21,5,"Ederson Lopes",3,21]
[21,5,"Cláudio Dumont",21,22]
[21,5,"Marcelo Pinheiro",1,23]
[21,5,"Alberto Branco",2,24]
[21,6,"Jarbas Reis",12,1]
[21,6,"Alexandre Melillo",21,2]
[21,6,"Caetano",7,3]
[21,6,"Guilherme Janot",16,4]
[21,6,"Rodrigo Mercadante",13,5]
[21,6,"Marcelo Mizrahy",18,6]
[21,6,"Ricardo Vidigal",9,7]
[21,6,"Marcelo Surerus",17,8]
[21,6,"Carlos Sampaio",11,9]
[21,6,"Carlos Eduardo",14,10]
[21,6,"Morvan",6,11]
[21,6,"Euclides Almeida",20,12]
[21,6,"Enio Júnior",19,13]
[21,6,"Marcelo Sant'anna",15,14]
[21,6,"Ricardo Araújo",4,15]
[21,6,"Marcelo Santiago",2,16]
[21,6,"Edson Ribeiro",1,17]
[21,6,"Michel Abouud",3,18]
[21,6,"Maurílio Carmo",5,19]
[21,6,"Marcelo Clemente",10,20]
[21,6,"Gijo",8,21]
[21,7,"Marcelo Sant'anna",12,1]
[21,7,"Marcelo Mizrahy",24,2]
[21,7,"Guilherme Janot",17,3]
[21,7,"Alexandre Melillo",15,4]
[21,7,"Marcelo Santiago",1,5]
[21,7,"Gijo",3,6]
[21,7,"Carlos Sampaio",13,7]
[21,7,"Carlos Eduardo",10,8]
[21,7,"Marcelo Clemente",11,9]
[21,7,"Jarbas Reis",16,10]
[21,7,"Caetano",8,11]
[21,7,"Enio Júnior",7,12]
[21,7,"Maurílio Carmo",2,13]
[21,7,"Michel Abouud",4,14]
[21,7,"Rodrigo Mercadante",14,15]
[21,7,"Ricardo Araújo",6,16]
[21,7,"Morvan",5,17]
[21,7,"Marcelo Surerus",18,18]
[21,7,"Carlos Filizolla",20,19]
[21,7,"Edson Ribeiro",23,20]
[21,7,"Euclides Almeida",9,21]
[21,7,"Leodegario Junior",19,22]
[21,7,"Gustavo Mourão",22,23]
[21,7,"Henrique Castilho",21,24]
[21,8,"Caetano",19,1]
[21,8,"Marcelo Sant'anna",13,2]
[21,8,"Guilherme Janot",17,3]
[21,8,"Marcelo Surerus",15,4]
[21,8,"Rodrigo Mercadante",11,5]
[21,8,"Marcelo Clemente",10,6]
[21,8,"Marcelo Mizrahy",16,7]
[21,8,"Jarbas Reis",14,8]
[21,8,"Alexandre Melillo",20,9]
[21,8,"Gijo",8,10]
[21,8,"Edson Ribeiro",2,11]
[21,8,"Maurílio Carmo",4,12]
[21,8,"Michel Abouud",5,13]
[21,8,"Ricardo Araújo",7,14]
[21,8,"Euclides Almeida",9,15]
[21,8,"Jader Abreu",18,16]
[21,8,"Carlos Sampaio",12,17]
[21,8,"Carlos Filizolla",1,18]
[21,8,"Morvan",6,19]
[21,8,"Leodegario Junior",3,20]
[21,9,"Ricardo Araújo",7,1]
[21,9,"Alexandre Melillo",13,2]
[21,9,"Caetano",9,3]
[21,9,"Rodrigo Mercadante",12,4]
[21,9,"Marcelo Clemente",11,5]
[21,9,"Carlos Eduardo",19,6]
[21,9,"Marcelo Surerus",17,7]
[21,9,"Marcelo Sant'anna",16,8]
[21,9,"Guilherme Janot",23,9]
[21,9,"Marcelo Mizrahy",15,10]
[21,9,"Enio Júnior",20,11]
[21,9,"Gijo",8,12]
[21,9,"Roberto Veloso",21,13]
[21,9,"Michel Abouud",5,14]
[21,9,"Jarbas Reis",14,15]
[21,9,"Morvan",4,16]
[21,9,"Leodegario Junior",3,17]
[21,9,"Carlos Sampaio",10,18]
[21,9,"Carlos Filizolla",22,19]
[21,9,"Jader Abreu",1,20]
[21,9,"Marcelo Santiago",18,21]
[21,9,"Edson Ribeiro",2,22]
[21,9,"Maurílio Carmo",6,23]
[21,10,"Marcelo Mizrahy",19,1]
[21,10,"Marcelo Sant'anna",15,2]
[21,10,"Carlos Eduardo",9,3]
[21,10,"Enio Júnior",4,4]
[21,10,"Caetano",8,5]
[21,10,"Euclides Almeida",17,6]
[21,10,"Jarbas Reis",13,7]
[21,10,"Alexandre Melillo",14,8]
[21,10,"Gijo",6,9]
[21,10,"Marcelo Surerus",16,10]
[21,10,"Marcelo Clemente",11,11]
[21,10,"Rodrigo Mercadante",12,12]
[21,10,"Edson Ribeiro",2,13]
[21,10,"Carlos Sampaio",10,14]
[21,10,"Michel Abouud",5,15]
[21,10,"Marcelo Santiago",3,16]
[21,10,"Ricardo Araújo",7,17]
[21,10,"Carlos Filizolla",1,18]
[21,10,"Rodrigo Rotheia",18,19]
[21,11,"Marcelo Sant'anna",14,1]
[21,11,"Rodrigo Rotheia",1,2]
[21,11,"Caetano",6,3]
[21,11,"Marcelo Surerus",13,4]
[21,11,"Marcelo Mizrahy",11,5]
[21,11,"Alexandre Melillo",12,6]
[21,11,"Marcelo Clemente",8,7]
[21,11,"Marcelo Santiago",2,8]
[21,11,"Carlos Sampaio",5,9]
[21,11,"Guilherme Janot",17,10]
[21,11,"Enio Júnior",4,11]
[21,11,"Rodrigo Mercadante",9,12]
[21,11,"Jarbas Reis",10,13]
[21,11,"Euclides Almeida",3,14]
[21,11,"Carlos Eduardo",7,15]
[21,11,"Ricardo Araújo",15,16]
[21,11,"Morvan",16,17]
[21,12,"Marcelo Clemente",8,1]
[21,12,"Alexandre Melillo",11,2]
[21,12,"Marcelo Mizrahy",10,3]
[21,12,"Marcelo Surerus",12,4]
[21,12,"Jarbas Reis",9,5]
[21,12,"Marcelo Sant'anna",13,6]
[21,12,"Morvan",15,7]
[21,12,"Carlos Sampaio",5,8]
[21,12,"Euclides Almeida",2,9]
[21,12,"Carlos Eduardo",6,10]
[21,12,"Leodegario Junior",14,11]
[21,12,"Enio Júnior",4,12]
[21,12,"Ricardo Araújo",3,13]
[21,12,"Carlos Filizolla",16,14]
[21,12,"Rodrigo Mercadante",7,15]
[21,12,"Rodrigo Rotheia",1,16]
[22,1,"Marcelo Clemente",1,1]
[22,1,"Guilherme Janot",3,2]
[22,1,"Marcelo Sant'anna",6,3]
[22,1,"Marcelo Mizrahy",12,4]
[22,1,"Cláudio Dumont",10,5]
[22,1,"Marcelo Surerus",22,6]
[22,1,"Rodrigo Mercadante",14,7]
[22,1,"Jarbas Reis",11,8]
[22,1,"Claudio Junqueira",8,9]
[22,1,"Lucio Chequer",16,10]
[22,1,"Rodrigo Rotheia",4,11]
[22,1,"Marcelo Junqueira",5,12]
[22,1,"Carlos Filizolla",23,13]
[22,1,"Carlos Sampaio",17,14]
[22,1,"Marcelo Santiago",19,15]
[22,1,"Flávio Marques",18,16]
[22,1,"Morvan ",15,17]
[22,1,"Cláudio Naves",20,18]
[22,1,"Alexandre Melillo",2,19]
[22,1,"Fernando Lobo",21,20]
[22,1,"Hélio Chagas",13,21]
[22,1,"Ivan Renault",7,22]
[22,1,"Carlos Eduardo",9,23]
[22,2,"Marcelo Mizrahy",11,1]
[22,2,"Cláudio Dumont",10,2]
[22,2,"Marcelo Clemente",14,3]
[22,2,"Marcelo Surerus",9,4]
[22,2,"Rodrigo Rotheia",4,5]
[22,2,"Carlos Eduardo",20,6]
[22,2,"Marcelo Sant'anna",12,7]
[22,2,"Rodrigo Mercadante",8,8]
[22,2,"Guilherme Janot",13,9]
[22,2,"Gijo ",30,10]
[22,2,"Jarbas Reis",7,11]
[22,2,"Lucio Chequer",5,12]
[22,2,"Morvan ",31,13]
[22,2,"Fernando Lobo",18,14]
[22,2,"Ricardo Araújo",24,15]
[22,2,"Leodegario Junior",27,16]
[22,2,"Marcelo Junqueira",3,17]
[22,2,"Carlos Sampaio",1,18]
[22,2,"Euclides Almeida",22,19]
[22,2,"Claudio Junqueira",6,20]
[22,2,"Jader Abreu",23,21]
[22,2,"Marcelo Santiago",15,22]
[22,2,"Michel Abouud",29,23]
[22,2,"Enio Júnior",21,24]
[22,2,"Edson Ribeiro",26,25]
[22,2,"Luiz Otávio",28,26]
[22,2,"Hélio Chagas",19,27]
[22,2,"Cláudio Naves",17,28]
[22,2,"Carlos Filizolla",2,29]
[22,2,"Flávio Marques",16,30]
[22,2,"Caetano ",25,31]
[22,3,"Alexandre Melillo",21,1]
[22,3,"Jarbas Reis",5,2]
[22,3,"Claudio Junqueira",2,3]
[22,3,"Rodrigo Mercadante",7,4]
[22,3,"Marcelo Clemente",9,5]
[22,3,"Rodrigo Rotheia",6,6]
[22,3,"Lucio Chequer",4,7]
[22,3,"Marcelo Surerus",22,8]
[22,3,"Carlos Sampaio",11,9]
[22,3,"Marcelo Junqueira",1,10]
[22,3,"Guilherme Janot",8,11]
[22,3,"Marcelo Mizrahy",23,12]
[22,3,"Roberto Veloso",25,13]
[22,3,"Gijo ",26,14]
[22,3,"Enio Júnior",19,15]
[22,3,"Ricardo Araújo",13,16]
[22,3,"Jader Abreu",18,17]
[22,3,"Maurílio Carmo",24,18]
[22,3,"Marcelo Santiago",12,19]
[22,3,"Joseph ",27,20]
[22,3,"Leodegario Junior",17,21]
[22,3,"Hélio Chagas",16,22]
[22,3,"Ivan Renault",20,23]
[22,3,"Flávio Marques",14,24]
[22,3,"Cláudio Naves",15,25]
[22,3,"Fernando Lobo",10,26]
[22,3,"Carlos Eduardo",3,27]
[22,4,"Marcelo Clemente",12,1]
[22,4,"Cláudio Dumont",22,2]
[22,4,"Jarbas Reis",10,3]
[22,4,"Rodrigo Rotheia",8,4]
[22,4,"Claudio Junqueira",4,5]
[22,4,"Lucio Chequer",7,6]
[22,4,"Marcelo Junqueira",3,7]
[22,4,"Marcelo Surerus",5,8]
[22,4,"Fernando Lobo",15,9]
[22,4,"Rodrigo Mercadante",11,10]
[22,4,"Carlos Eduardo",13,11]
[22,4,"Marcelo Mizrahy",6,12]
[22,4,"Alexandre Melillo",2,13]
[22,4,"Ricardo Araújo",16,14]
[22,4,"Guilherme Janot",9,15]
[22,4,"Marcelo Sant'anna",23,16]
[22,4,"Gijo ",17,17]
[22,4,"Caetano ",27,18]
[22,4,"Enio Júnior",18,19]
[22,4,"Carlos Sampaio",1,20]
[22,4,"Euclides Almeida",25,21]
[22,4,"Flávio Marques",19,22]
[22,4,"Jader Abreu",30,23]
[22,4,"Jorge Prado",29,24]
[22,4,"Carlos Filizolla",24,25]
[22,4,"Ivan Renault",21,26]
[22,4,"Marcelo Santiago",14,27]
[22,4,"Hélio Chagas",20,28]
[22,4,"Michel Abouud",26,29]
[22,4,"Luiz Otávio",28,30]
[22,5,"Alexandre Melillo",2,1]
[22,5,"Rodrigo Mercadante",9,2]
[22,5,"Carlos Eduardo",1,3]
[22,5,"Marcelo Sant'anna",3,4]
[22,5,"Marcelo Surerus",26,5]
[22,5,"Gijo ",16,6]
[22,5,"Marcelo Mizrahy",5,7]
[22,5,"Caetano ",23,8]
[22,5,"Marcelo Junqueira",4,9]
[22,5,"Roberto Veloso",27,10]
[22,5,"Claudio Junqueira",6,11]
[22,5,"Euclides Almeida",21,12]
[22,5,"Hélio Chagas",20,13]
[22,5,"Ricardo Araújo",15,14]
[22,5,"Enio Júnior",17,15]
[22,5,"Carlos Sampaio",13,16]
[22,5,"Jarbas Reis",11,17]
[22,5,"Ivan Renault",22,18]
[22,5,"Guilherme Janot",7,19]
[22,5,"Flávio Marques",18,20]
[22,5,"Maurílio Carmo",28,21]
[22,5,"Cláudio Dumont",8,22]
[22,5,"Marcelo Clemente",12,23]
[22,5,"Joseph ",25,24]
[22,5,"Fernando Lobo",14,25]
[22,5,"Jader Abreu",19,26]
[22,5,"Morvan ",24,27]
[22,5,"Rodrigo Rotheia",10,28]
[22,6,"Marcelo Mizrahy",7,1]
[22,6,"Marcelo Clemente",11,2]
[22,6,"Guilherme Janot",4,3]
[22,6,"Marcelo Surerus",2,4]
[22,6,"Alexandre Melillo",5,5]
[22,6,"Roberto Veloso",20,6]
[22,6,"Gijo ",13,7]
[22,6,"Marcelo Sant'anna",6,8]
[22,6,"Claudio Junqueira",25,9]
[22,6,"Jarbas Reis",9,10]
[22,6,"Morvan ",18,11]
[22,6,"Rodrigo Mercadante",10,12]
[22,6,"Carlos Eduardo",1,13]
[22,6,"Ivan Renault",19,14]
[22,6,"Marcelo Junqueira",3,15]
[22,6,"SAMPA (CS)",28,16]
[22,6,"Fernando Lobo",12,17]
[22,6,"Luiz Otávio",27,18]
[22,6,"Michel Abouud",24,19]
[22,6,"Maurílio Carmo",22,20]
[22,6,"Euclides Almeida",17,21]
[22,6,"Leodegario Junior",26,22]
[22,6,"Ricardo Araújo",14,23]
[22,6,"Hélio Chagas",16,24]
[22,6,"Rodrigo Rotheia",8,25]
[22,6,"Enio Júnior",15,26]
[22,6,"Lucio Chequer",23,27]
[22,6,"Joseph ",21,28]
[22,7,"Marcelo Clemente",9,1]
[22,7,"Marcelo Sant'anna",6,2]
[22,7,"Claudio Junqueira",1,3]
[22,7,"Alexandre Melillo",8,4]
[22,7,"Carlos Sampaio",11,5]
[22,7,"Marcelo Mizrahy",4,6]
[22,7,"Guilherme Janot",3,7]
[22,7,"Lucio Chequer",2,8]
[22,7,"Jarbas Reis",5,9]
[22,7,"Enio Júnior",15,10]
[22,7,"Euclides Almeida",14,11]
[22,7,"Gijo ",10,12]
[22,7,"Ricardo Araújo",12,13]
[22,7,"Morvan ",13,14]
[22,7,"Hélio Chagas",16,15]
[22,7,"CLAUDIO PESSOA",21,16]
[22,7,"Michel Abouud",19,17]
[22,7,"Luiz Otávio",20,18]
[22,7,"Leodegario Junior",18,19]
[22,7,"Rodrigo Mercadante",7,20]
[22,7,"Maurílio Carmo",17,21]
[22,8,"Guilherme Janot",3,1]
[22,8,"Roberto Veloso",20,2]
[22,8,"Carlos Sampaio",1,3]
[22,8,"Alexandre Melillo",7,4]
[22,8,"Lucio Chequer",17,5]
[22,8,"Rodrigo Mercadante",4,6]
[22,8,"Claudio Junqueira",2,7]
[22,8,"Marcelo Sant'anna",6,8]
[22,8,"Enio Júnior",9,9]
[22,8,"Euclides Almeida",18,10]
[22,8,"Maurílio Carmo",11,11]
[22,8,"Morvan ",8,12]
[22,8,"Michel Abouud",12,13]
[22,8,"Jarbas Reis",5,14]
[22,8,"Leodegario Junior",19,15]
[22,8,"Flávio Marques",15,16]
[22,8,"Carlos Filizolla",21,17]
[22,8,"Jader Abreu",16,18]
[22,8,"Hélio Chagas",10,19]
[22,8,"Luiz Otávio",13,20]
[22,8,"Carlos Eduardo",14,21]
[22,9,"Alexandre Melillo",8,1]
[22,9,"Carlos Eduardo",18,2]
[22,9,"Guilherme Janot",7,3]
[22,9,"Claudio Junqueira",3,4]
[22,9,"Rodrigo Mercadante",5,5]
[22,9,"Carlos Sampaio",1,6]
[22,9,"Roberto Veloso",11,7]
[22,9,"Marcelo Clemente",16,8]
[22,9,"Lucio Chequer",2,9]
[22,9,"Leodegario Junior",14,10]
[22,9,"Fernando Lobo",19,11]
[22,9,"Maurílio Carmo",12,12]
[22,9,"Euclides Almeida",9,13]
[22,9,"Jader Abreu",13,14]
[22,9,"Morvan ",10,15]
[22,9,"Marcelo Sant'anna",6,16]
[22,9,"Marcelo Junqueira",17,17]
[22,9,"Carlos Filizolla",15,18]
[22,9,"Jarbas Reis",4,19]
[22,10,"Marcelo Clemente",10,1]
[22,10,"Guilherme Janot",8,2]
[22,10,"Alexandre Melillo",9,3]
[22,10,"Euclides Almeida",1,4]
[22,10,"Marcelo Sant'anna",7,5]
[22,10,"Carlos Sampaio",3,6]
[22,10,"Lucio Chequer",4,7]
[22,10,"Ivan Renault",14,8]
[22,10,"Jarbas Reis",5,9]
[22,10,"Maurílio Carmo",11,10]
[22,10,"Jorge Prado",16,11]
[22,10,"Hélio Chagas",13,12]
[22,10,"Leodegario Junior",12,13]
[22,10,"Flávio Marques",15,14]
[22,10,"Carlos Eduardo",2,15]
[22,10,"Claudio Junqueira",6,16]
[22,11,"Marcelo Clemente",9,1]
[22,11,"Guilherme Janot",8,2]
[22,11,"Alexandre Melillo",7,3]
[22,11,"Jarbas Reis",4,4]
[22,11,"Marcelo Sant'anna",6,5]
[22,11,"Carlos Eduardo",1,6]
[22,11,"EDUARDO DIAS",20,7]
[22,11,"Marcelo Mizrahy",19,8]
[22,11,"Rodrigo Mercadante",17,9]
[22,11,"Claudio Junqueira",5,10]
[22,11,"Ivan Renault",14,11]
[22,11,"Carlos Sampaio",2,12]
[22,11,"Hélio Chagas",13,13]
[22,11,"Enio Júnior",16,14]
[22,11,"Maurílio Carmo",12,15]
[22,11,"Euclides Almeida",10,16]
[22,11,"Gijo ",21,17]
[22,11,"CLAUDIO PESSOA",22,18]
[22,11,"Morvan ",11,19]
[22,11,"Lucio Chequer",3,20]
[22,11,"Michel Abouud",15,21]
[22,11,"Flávio Marques",18,22]
[22,12,"Alexandre Melillo",9,1]
[22,12,"Guilherme Janot",15,2]
[22,12,"Marcelo Sant'anna",8,3]
[22,12,"Rodrigo Mercadante",7,4]
[22,12,"Marcelo Mizrahy",17,5]
[22,12,"Jarbas Reis",6,6]
[22,12,"Lucio Chequer",4,7]
[22,12,"EDUARDO DIAS",18,8]
[22,12,"Ivan Renault",13,9]
[22,12,"Carlos Sampaio",5,10]
[22,12,"Carlos Eduardo",3,11]
[22,12,"Jorge Prado",19,12]
[22,12,"Marcelo Clemente",10,13]
[22,12,"Enio Júnior",12,14]
[22,12,"Maurílio Carmo",11,15]
[22,12,"Flávio Marques",14,16]
[22,12,"Leodegario Junior",16,17]
[22,12,"Hélio Chagas",1,18]
[22,12,"Morvan ",2,19]